lending/lending_fUSD_20260209
["ID","MTS","AMOUNT","RATE_DAILY","PERIOD"]
[404845457,1770616235302,-475.23844384,0.00043773,7]
[404845458,1770616235318,-24.76155616,0.00043773,7]
[404845459,1770616235327,-500.0,0.00043773,10]
[404845460,1770616235337,-500.0,0.00043773,10]
[404845461,1770616235347,-500.0,0.00043773,10]
[404845462,1770616235360,-500.0,0.00043773,10]
[404845463,1770616235370,-500.0,0.00043773,10]
[404845464,1770616235380,-500.0,0.00043773,10]
[404845465,1770616235389,-500.0,0.00043773,10]
[404845466,1770616235399,-500.0,0.00043773,10]
[404845467,1770616235409,-500.0,0.00043773,10]
[404845468,1770616235420,-162.16917095,0.00043773,10]
[404845469,1770616235429,-500.0,0.00043773,10]
[404845470,1770616235439,-500.0,0.00043773,10]
[404845471,1770616235448,-500.0,0.00043773,10]
[404845472,1770616235458,-160.39302496,0.00043773,10]
[404845473,1770616235468,-162.34170443,0.00043773,2]
[404845474,1770616235477,-309.71303506,0.00043773,10]
[404845475,1770616235486,-169.95855216,0.00043773,10]
[404845476,1770616235496,-500.0,0.00043773,10]
[404845477,1770616235505,-500.0,0.00043773,10]
[404845478,1770616235514,-161.64701546,0.00043773,5]
[404845479,1770616235524,-500.0,0.00043773,5]
[404845480,1770616235535,-157.74428972,0.00043773,10]
[404845481,1770616235545,-501.2745488,0.00043773,10]
[404845482,1770616235554,-182.9294021,0.00043773,10]
[404845483,1770616235563,-162.90649978,0.00043773,2]
[404845484,1770616235572,-500.0,0.00043773,10]
[404845485,1770616235582,-500.0,0.00043773,10]
[404845486,1770616235592,-513.08347709,0.00043773,10]
[404845487,1770616235601,-500.0,0.00043773,10]
[404845488,1770616235610,-510.05803052,0.00043773,10]
[404845489,1770616235619,-264.49905291,0.00043773,10]
[404845490,1770616235628,-500.0,0.00043773,10]
[404845491,1770616235638,-500.0,0.00043773,10]
[404845492,1770616235647,-500.41066927,0.00043773,10]
[404845493,1770616235657,-500.0,0.00043773,10]
[404845494,1770616235668,-500.0,0.00043773,10]
[404845495,1770616235677,-500.62894029,0.00043773,10]
[404845496,1770616235687,-1042.66,0.00043773,30]
[404845497,1770616235696,-1000.0,0.000438,30]
[404845498,1770616235706,-1000.0,0.000438,120]
[404845499,1770616235715,-8798.0,0.00043804,7]
[404845500,1770616235724,-3517.28682138,0.00043826,2]
[404845501,1770616235909,-33694.62668472,0.00043826,2]
[404845502,1770616235919,-1000.0,0.00043836,30]
[404845503,1770616235928,-150.0,0.00043836,120]
[404845504,1770616235938,-10797.54890835,0.00043865,15]
[404845505,1770616235947,-150.0,0.00043891,120]
[404845506,1770616235956,-3395.2074,0.000439,120]
[404845507,1770616235965,-536.56824174,0.00043907,60]
[404845508,1770616235975,-537.79802795,0.00043907,60]
[404845509,1770616235984,-500.0,0.00043929,2]
[404845510,1770616235994,-15916.13790542,0.00043929,30]
[404845511,1770616236005,-2303.22682107,0.00043929,30]
[404845512,1770616236016,-1741.21936042,0.00043929,30]
[404845513,1770616237860,-150.0,0.00040247,30]
[404845514,1770616237870,-150.0,0.00040247,2]
[404845515,1770616237879,-150.0,0.00040302,30]
[404845516,1770616237888,-253.69312086,0.00040357,30]
[404845517,1770616237899,-4478.00151961,0.0004172,15]
[404845518,1770616237908,-500.0,0.00043773,10]
[404845519,1770616237920,-161.44985994,0.00043773,10]
[404845520,1770616237931,-1204.22097789,0.00043929,30]
[404845521,1770616237968,-860.85068214,0.00043929,30]
[404845544,1770616239840,-4478.00151961,0.0004259,15]
[404845546,1770616239850,-454.95855749,0.00043929,30]
[404845547,1770616239861,-2065.88115984,0.00043929,30]
[404845548,1770616240118,-13849.51772015,0.00043929,30]
[404845560,1770616243617,-143.21879787,0.00040548,2]
[404845561,1770616243629,-856.78120213,0.00040548,2]
[404845562,1770616243639,-69.13570767,0.00043773,10]
[404845563,1770616244578,-742.06334967,0.0004274,7]
[404845577,1770616245712,-1757.93665033,0.0004274,7]
[404845578,1770616245723,-4478.00151961,0.0004346,15]
[404845579,1770616245734,-97.02486529,0.00043773,10]
[404845580,1770616245743,-150.0,0.00043836,120]
[404845581,1770616245753,-266.76727611,0.00043891,120]
[404845582,1770616245762,-3629.98681558,0.00043929,30]
[404845583,1770616245771,-160.0,0.0004395,120]
[404845584,1770616245780,-1000.0,0.00043999,120]
[404845585,1770616245789,-5774.81383641,0.00044,120]
[404845586,1770616245801,-20781.71049111,0.00044,120]
[404845587,1770616245812,-1110.06940007,0.00044,120]
[404845588,1770616245829,-4073.8406604,0.00044,120]
[404845706,1770616269625,195.0,0.00034247,120]
[404845707,1770616269723,195.0,0.00035501,120]
[404845708,1770616269832,316.11943906,0.00035501,120]
[404845714,1770616574514,510.0,0.00035616,30]
[404845715,1770616623939,22943.93192769,0.000356,30]
[404845720,1770616691058,600.0,0.00032604,120]
[404845721,1770616691156,225.68854246,0.00032764,120]
[404845722,1770616691910,300.45225993,0.00032604,30]
[404845727,1770617296120,154.5,0.00035616,30]
[404845729,1770617349145,-261.1,0.0003055,2]
[404845730,1770617349166,-261.1,0.00031814,2]
[404845731,1770617349188,-500.0,0.000325,2]
[404845732,1770617349210,-500.0,0.000325,2]
[404845733,1770617349232,-337.66241168,0.000325,2]
[404845734,1770617349253,-250.0,0.0003255,2]
[404845735,1770617349276,-747.12769894,0.0003255,2]
[404845736,1770617349297,-294.65,0.000326,2]
[404845737,1770617349318,-510.0,0.00032616,2]
[404845738,1770617349339,-261.1,0.00033077,2]
[404845739,1770617349360,-747.12769894,0.00034084,2]
[404845740,1770617349380,-261.1,0.00034341,5]
[404845741,1770617349400,-413.22635974,0.000348,2]
[404845754,1770617431836,-375.12799992,0.00032616,2]
[404845755,1770617431893,-134.87200008,0.00032616,2]
[404845756,1770617431902,-366.12799992,0.000345,2]
[404845757,1770617431914,-533.34640399,0.000345,2]
[404845758,1770617431952,-835.60817854,0.000345,2]
[404845759,1770617432010,-1413.25471627,0.000345,2]
[404845760,1770617432023,-657.58326595,0.000345,2]
[404845761,1770617432034,-1065.07636469,0.000345,2]
[404845762,1770617432046,-76.00307064,0.000345,2]
[404845763,1770617432056,-492.51601196,0.000347,2]
[404845764,1770617432067,-245.06765085,0.000347,2]
[404845765,1770617432077,-277.83846619,0.00034898,2]
[404845767,1770617432088,-43.01153381,0.00034898,2]
[404845769,1770617432097,-150.0,0.00034904,2]
[404845770,1770617432107,-150.0,0.00035037,2]
[404845771,1770617432117,-1464.8644725,0.000352,3]
[404845772,1770617432128,-4064.1355275,0.000352,3]
[404845773,1770617432137,-133.39868146,0.00035392,2]
[404845793,1770617437925,-1551.74131854,0.00035392,2]
[404845794,1770617437935,-737.58366281,0.00035393,2]
[404845795,1770617437945,-261.1,0.00035604,5]
[404845796,1770617437955,-1632.16921455,0.0003566,2]
[404845797,1770617437965,-182.20998661,0.0003566,2]
[404845798,1770617437976,-583.72879,0.0003566,2]
[404845799,1770617437988,-5263.42639381,0.0003566,2]
[404845800,1770617438043,-2957.49507076,0.0003566,2]
[404845801,1770617438053,-3349.5969184,0.0003566,2]
[404845802,1770617438063,-367.26757822,0.0003566,2]
[404845803,1770617438074,-1079.75489088,0.00035678,2]
[404845804,1770617438084,-154.0002243,0.00035733,30]
[404845805,1770617438094,-195.0,0.0003575,120]
[404845806,1770617438104,-315.61904603,0.0003575,2]
[404845807,1770617438113,-4451.1065,0.00035753,10]
[404845808,1770617438123,-151.0,0.00035757,14]
[404845809,1770617438132,-175.84717286,0.00035759,15]
[404845810,1770617438142,-530.98548347,0.00035759,15]
[404845811,1770617438152,-195.12511025,0.00035759,15]
[404845812,1770617438161,-500.0,0.00035759,15]
[404845813,1770617438171,-360.14767108,0.00035759,15]
[404845814,1770617438182,-500.0,0.00035759,15]
[404845815,1770617438192,-545.48608928,0.00035759,15]
[404845816,1770617438201,-500.0,0.00035759,15]
[404845817,1770617438210,-500.0,0.00035759,15]
[404845818,1770617438220,-500.0,0.00035759,15]
[404845819,1770617438229,-500.0,0.00035759,15]
[404845820,1770617438240,-500.0,0.00035759,2]
[404845821,1770617438251,-500.0,0.00035759,2]
[404845822,1770617438261,-500.0,0.00035759,2]
[404845823,1770617438271,-500.0,0.00035759,2]
[404845825,1770617438281,-500.0,0.00035759,2]
[404845827,1770617438291,-500.0,0.00035759,2]
[404845829,1770617438300,-500.0,0.00035759,2]
[404845831,1770617438310,-500.0,0.00035759,2]
[404845833,1770617438320,-500.0,0.00035759,2]
[404845835,1770617438329,-297.76519189,0.00035759,2]
[404845836,1770617438339,-1463486.77410403,0.0003576,2]
[404845839,1770617438351,-493.17330366,0.0003576,2]
[404845842,1770617438375,-1575.97488614,0.0003576,2]
[404845845,1770617438388,-13649.86479778,0.0003576,2]
[404846013,1770617440086,-727.95250586,0.0003576,2]
[404846049,1770617440422,-418.54789703,0.0003576,2]
[404846423,1770617444066,-200.0495081,0.00035293,2]
[404846424,1770617444076,-351.42521493,0.0003566,2]
[404846425,1770617444087,-4.86041497,0.0003566,2]
[404846426,1770617444096,-455.22312312,0.0003576,2]
[404846539,1770617445925,-7085.09999999,0.0003576,2]
[404846540,1770617446198,-7561.81123363,0.0003576,2]
[404846541,1770617446210,-327.41395545,0.0003576,2]
[404846543,1770617460396,220865.22669169,0.00035616,30]
[404846544,1770617461825,195.0,0.00035479,120]
[404846545,1770617464652,600.0,0.00035389,120]
[404846546,1770617464777,600.0,0.00035611,120]
[404846547,1770617464878,600.0,0.00035611,120]
[404846548,1770617464994,600.0,0.00035611,120]
[404846549,1770617492416,179.582,0.00035045,40]
[404846550,1770617492463,2652.94,0.00035045,40]
[404846551,1770617531074,416.44893556,0.00034725,120]
[404846553,1770617581378,195.0,0.00033669,120]
[404846557,1770617679628,204.0,0.00035178,120]
[404846558,1770617722761,154.0002243,0.00035551,30]
[404846559,1770617780743,166.66,0.00032463,30]
[404846560,1770617780947,166.66,0.00033146,30]
[404846561,1770617781143,166.66,0.0003383,30]
[404846562,1770617781397,166.66,0.00034513,30]
[404846563,1770617781608,166.66,0.00035196,30]
[404846564,1770617823972,600.0,0.00033669,120]
[404846565,1770617824934,195.0,0.00033669,120]
[404846566,1770617825531,300.0,0.00033669,30]
[404846567,1770617826193,5078.82982559,0.00033669,120]
[404846568,1770617881056,951.8679,0.00034099,30]
[404846569,1770617886410,368.10217605,0.00033669,120]
[404846570,1770617910296,150.0,0.00034973,30]
[404846571,1770617945151,2702.48,0.00035616,30]
[404846572,1770617946356,600.0,0.00033669,120]
[404846573,1770617978708,151.0,0.000356,30]
[404846574,1770617998427,151.0,0.000356,60]
[404846575,1770618011689,151.0,0.000356,90]
[404846576,1770618024230,151.0,0.000356,120]
[404846577,1770618071474,512.2609153,0.00035577,30]
[404846578,1770618093081,500.0,0.00035577,60]
[404846579,1770618324416,398.08280932,0.000108,2]
[404846580,1770618341572,-1000.0,0.00018,2]
[404846581,1770618382343,500.0,0.0001791,2]
[404846582,1770618388518,150.0,0.00034111,30]
[404846583,1770618388663,150.0,0.00034166,30]
[404846584,1770618389032,200.0,0.00034221,30]
[404846585,1770618421506,230.0,0.00017999,2]
[404846586,1770618421547,300.0,0.00017999,2]
[404846587,1770618421608,153.0,0.00017999,2]
[404846588,1770618440020,981.87146503,0.00017999,2]
[404846589,1770618440080,981.87146503,0.00017999,2]
[404846590,1770618440116,981.87146503,0.00017999,2]
[404846591,1770618440391,981.87146503,0.00017999,2]
[404846592,1770618440429,981.87146503,0.00017999,2]
[404846593,1770618440466,981.87146503,0.00017999,2]
[404846594,1770618440499,981.87146503,0.00017999,2]
[404846595,1770618440532,981.87146503,0.00017999,2]
[404846596,1770618440566,962.03827976,0.00017999,2]
[404846597,1770618440597,19.83318527,0.00017999,2]
[404846598,1770618440632,981.87146503,0.00017999,2]
[404846599,1770618440669,981.87146503,0.00017999,2]
[404846600,1770618440707,981.87146503,0.00017999,2]
[404846601,1770618440744,981.87146503,0.00017999,2]
[404846602,1770618440776,981.87146503,0.00017999,2]
[404846603,1770618440807,981.87146503,0.00017999,2]
[404846604,1770618440842,981.87146503,0.00017999,2]
[404846605,1770618440877,981.87146503,0.00017999,2]
[404846606,1770618440910,981.87146503,0.00017999,2]
[404846607,1770618440947,981.87146503,0.00017999,2]
[404846608,1770618440987,161.46216443,0.00017999,2]
[404846609,1770618441013,820.4093006,0.00017999,2]
[404846610,1770618441053,981.87146503,0.00017999,2]
[404846611,1770618441091,981.87146503,0.00017999,2]
[404846612,1770618441123,981.87146503,0.00017999,2]
[404846613,1770618441155,981.87146503,0.00017999,2]
[404846614,1770618441189,981.87146503,0.00017999,2]
[404846615,1770618441225,981.87146503,0.00017999,2]
[404846616,1770618441259,981.87146503,0.00017999,2]
[404846617,1770618441293,981.87146503,0.00017999,2]
[404846618,1770618441337,981.87146503,0.00017999,2]
[404846619,1770618441373,342.75751413,0.00017999,2]
[404846620,1770618441400,639.1139509,0.00017999,2]
[404846621,1770618441441,981.87146503,0.00017999,2]
[404846622,1770618441477,981.87146503,0.00017999,2]
[404846623,1770618441512,981.87146503,0.00017999,2]
[404846624,1770618441567,981.87146503,0.00017999,2]
[404846625,1770618441617,981.87146503,0.00017999,2]
[404846626,1770618441654,981.87146503,0.00017999,2]
[404846627,1770618441695,981.87146503,0.00017999,2]
[404846628,1770618441732,981.87146503,0.00017999,2]
[404846629,1770618441765,981.87146503,0.00017999,2]
[404846630,1770618441806,524.05286383,0.00017999,2]
[404846631,1770618441833,457.8186012,0.00017999,2]
[404846632,1770618441873,981.87146503,0.00017999,2]
[404846633,1770618441911,981.87146503,0.00017999,2]
[404846634,1770618441948,981.87146503,0.00017999,2]
[404846635,1770618441993,981.87146503,0.00017999,2]
[404846636,1770618442030,981.87146503,0.00017999,2]
[404846637,1770618442062,981.87146503,0.00017999,2]
[404846638,1770618442098,981.87146503,0.00017999,2]
[404846639,1770618442129,981.87146503,0.00017999,2]
[404846640,1770618442168,981.87146503,0.00017999,2]
[404846641,1770618442209,705.34821353,0.00017999,2]
[404846642,1770618442242,276.5232515,0.00017999,2]
[404846643,1770618442290,981.87146503,0.00017999,2]
[404846644,1770618442325,981.87146503,0.00017999,2]
[404846645,1770618442361,981.87146503,0.00017999,2]
[404846646,1770618442396,981.87146503,0.00017999,2]
[404846647,1770618442431,981.87146503,0.00017999,2]
[404846648,1770618442498,981.87146503,0.00017999,2]
[404846649,1770618450789,981.87146503,0.00017999,2]
[404846650,1770618450822,981.87146503,0.00017999,2]
[404846651,1770618450853,981.87146503,0.00017999,2]
[404846652,1770618450885,886.64356323,0.00017999,2]
[404846653,1770618450912,95.2279018,0.00017999,2]
[404846654,1770618450944,981.87146503,0.00017999,2]
[404846655,1770618451177,981.87146503,0.00017999,2]
[404846656,1770618451212,981.87146503,0.00017999,2]
[404846657,1770618451245,981.87146503,0.00017999,2]
[404846658,1770618451279,981.87146503,0.00017999,2]
[404846659,1770618451310,981.87146503,0.00017999,2]
[404846660,1770618451342,981.87146503,0.00017999,2]
[404846661,1770618451374,981.87146503,0.00017999,2]
[404846662,1770618451461,981.87146503,0.00017999,2]
[404846663,1770618451534,981.87146503,0.00017999,2]
[404846664,1770618451565,86.0674479,0.00017999,2]
[404846665,1770618451593,895.80401713,0.00017999,2]
[404846666,1770618451630,981.87146503,0.00017999,2]
[404846667,1770618451662,981.87146503,0.00017999,2]
[404846668,1770618451694,981.87146503,0.00017999,2]
[404846669,1770618451726,981.87146503,0.00017999,2]
[404846670,1770618451758,981.87146503,0.00017999,2]
[404846671,1770618451787,981.87146503,0.00017999,2]
[404846672,1770618451820,981.87146503,0.00017999,2]
[404846673,1770618451852,981.87146503,0.00017999,2]
[404846674,1770618451884,981.87146503,0.00017999,2]
[404846675,1770618451917,267.3627976,0.00017999,2]
[404846676,1770618451944,714.50866743,0.00017999,2]
[404846677,1770618451987,981.87146503,0.00017999,2]
[404846678,1770618452032,981.87146503,0.00017999,2]
[404846679,1770618452072,981.87146503,0.00017999,2]
[404846680,1770618452104,981.87146503,0.00017999,2]
[404846681,1770618452138,981.87146503,0.00017999,2]
[404846682,1770618452176,981.87146503,0.00017999,2]
[404846683,1770618457089,500.0,0.00034999,60]
[404846684,1770618457320,500.0,0.00034999,60]
[404846685,1770618457555,500.0,0.00034999,60]
[404846686,1770618457782,500.0,0.00034999,60]
[404846687,1770618458017,500.0,0.00034999,60]
[404846688,1770618458244,500.0,0.00034999,60]
[404846689,1770618458473,515.9055559,0.00034999,60]
[404846690,1770618488684,500.0,0.00017999,2]
[404846691,1770618488714,500.0,0.00017999,2]
[404846692,1770618488762,262.1318607,0.00017999,2]
[404846693,1770618496996,500.0,0.00017999,2]
[404846694,1770618497030,500.0,0.00017999,2]
[404846695,1770618497079,500.0,0.00017999,2]
[404846696,1770618497364,500.0,0.00017999,2]
[404846697,1770618497403,132.14068169,0.00017999,2]
[404846698,1770618497427,52.57235778,0.00017999,2]
[404846699,1770618505812,500.0,0.00017999,2]
[404846700,1770618505849,500.0,0.00017999,2]
[404846701,1770618505990,500.0,0.00017999,2]
[404846702,1770618506033,500.0,0.00017999,2]
[404846703,1770618506100,500.0,0.00017999,2]
[404846704,1770618506165,425.64775239,0.00017999,2]
[404846705,1770618506197,500.0,0.00017999,2]
[404846706,1770618506718,500.0,0.00017999,2]
[404846707,1770618507947,500.0,0.00017999,2]
[404846708,1770618508000,481.87146468,0.00017999,2]
[404846709,1770618519166,356.67133066,0.00017999,2]
[404846710,1770618522028,175.79012031,0.00017999,2]
[404846711,1770618522968,500.0,0.00017999,2]
[404846712,1770618523022,500.0,0.00017999,2]
[404846713,1770618523058,500.0,0.00017999,2]
[404846714,1770618523093,397.44889531,0.00017999,2]
[404846715,1770618523124,500.0,0.00017999,2]
[404846716,1770618533347,500.0,0.00017999,2]
[404846717,1770618533416,509.31183288,0.00017999,2]
[404846718,1770618544649,5466.51147971,0.0003561,30]
[404846720,1770618601226,300.0,0.00017999,2]
[404846721,1770618615201,500.0,0.00017999,2]
[404846722,1770618615437,500.0,0.00017999,2]
[404846723,1770618615669,500.0,0.00017999,2]
[404846724,1770618625967,-5000.0,0.00018,2]
[404846736,1770618632004,-87186.92801671,0.00018,2]
[404846738,1770618632015,-73272.1213486,0.00018,2]
[404846739,1770618632068,-2935.86868876,0.00018,2]
[404846740,1770618632079,-279.79428379,0.00018,2]
[404846741,1770618632182,-2135.01,0.00018,2]
[404846742,1770618632193,-1593.65969879,0.00018,2]
[404846743,1770618632240,-97520.91367338,0.00018,2]
[404846747,1770618638124,-4952.67183554,0.00018,2]
[404846748,1770618638136,-89372.96833229,0.00018,2]
[404846749,1770618638184,-110758.52712505,0.00018,2]
[404846750,1770618638279,-360016.96502979,0.00018,2]
[404846751,1770618638289,-304.0,0.00018,2]
[404846752,1770618638299,-1433.94378737,0.00019439,2]
[404846753,1770618638309,-3154.45461976,0.00019539,2]
[404846754,1770618638319,-420.0,0.00019639,2]
[404846755,1770618638328,-250.0,0.000198,2]
[404846756,1770618638338,-369.86612182,0.000198,2]
[404846757,1770618638347,-3154.45461973,0.00021968,2]
[404846758,1770618638357,-250.0,0.00022447,2]
[404846759,1770618638366,-1433.94378736,0.00022997,2]
[404846760,1770618638376,-3154.45461973,0.00024397,2]
[404846761,1770618638386,-1891.20619203,0.00024439,2]
[404846762,1770618638395,-3632.41238418,0.00025976,2]
[404846763,1770618638405,-1433.94378736,0.00026555,2]
[404846764,1770618638414,-3154.45461973,0.00026826,2]
[404846766,1770618638423,-3708.11700112,0.00027513,2]
[404846768,1770618638432,-3935.23085225,0.00029051,2]
[404846770,1770618638442,-3154.45461973,0.00029255,2]
[404846772,1770618638451,-1433.94378736,0.00030113,2]
[404846774,1770618638460,-506.03129552,0.0003013,2]
[404846776,1770618638470,-183.04,0.00030181,2]
[404846778,1770618638479,-4238.04932043,0.00030588,2]
[404846780,1770618638490,-187.11648453,0.00030608,2]
[404846782,1770618638499,-282.9,0.00030712,2]
[404846784,1770618638509,-360.0,0.000312,3]
[404846786,1770618638518,-3154.45461973,0.00031684,2]
[404846788,1770618638527,-5529.0,0.000318,5]
[404846790,1770618638537,-160.0,0.00031805,2]
[404846792,1770618638546,-183.04,0.00031858,2]
[404846794,1770618638555,-282.9,0.00031961,2]
[404846796,1770618638565,-151.38,0.000325,3]
[404846798,1770618638575,-510.0,0.00032616,2]
[404846800,1770618638584,-4019.4538798,0.00033,13]
[404846802,1770618638594,-282.9,0.0003321,2]
[404846804,1770618638603,-500.0,0.00033236,2]
[404846806,1770618638612,-183.04,0.00033535,2]
[404846808,1770618638621,-4843.68625679,0.00033662,2]
[404846810,1770618638630,-1433.94378736,0.0003367,2]
[404846811,1770618638639,-237.52375326,0.0003382,2]
[404846813,1770618638649,-3409.23025175,0.0003382,2]
[404846816,1770618638659,-2056.28695353,0.00033829,2]
[404846817,1770618638668,-371.20074059,0.00033855,2]
[404846819,1770618638677,-371.20074059,0.00033855,2]
[404846821,1770618638687,-300.0,0.00033864,10]
[404846823,1770618638697,-165.79318831,0.00033864,7]
[404846825,1770618638706,-500.0,0.00033864,7]
[404846827,1770618638716,-509.71416723,0.00033864,7]
[404846830,1770618638725,-500.0,0.00033864,7]
[404846832,1770618638735,-426.63470058,0.00033864,7]
[404846833,1770618638744,-154.95594786,0.00033864,7]
[404846835,1770618638753,-500.0,0.00033864,7]
[404846838,1770618638763,-500.0,0.00033864,7]
[404846840,1770618638773,-579.31494452,0.00033864,7]
[404846842,1770618638783,-500.0,0.00033864,2]
[404846843,1770618638792,-500.0,0.00033864,2]
[404846846,1770618638801,-500.0,0.00033864,2]
[404846848,1770618638810,-500.0,0.00033864,2]
[404846850,1770618638819,-500.0,0.00033864,2]
[404846852,1770618638830,-500.0,0.00033864,2]
[404846854,1770618638839,-297.76519189,0.00033864,2]
[404846856,1770618638848,-1048956.56899786,0.00033865,2]
[404846858,1770618638860,-330.9653448,0.00033865,2]
[404846911,1770618640171,-26057.02383779,0.00033865,2]
[404846912,1770618640185,-689.84176637,0.00033865,2]
[404846913,1770618640295,-254.35801595,0.00033865,2]
[404846914,1770618640307,-429.22884342,0.00033865,2]
[404846915,1770618640410,-2423282.01319381,0.00033865,2]
[404846916,1770618640420,-523.0,0.0003392,2]
[404846917,1770618640429,-1000.0,0.00033965,2]
[404846918,1770618640439,-500.0,0.00034002,2]
[404846919,1770618640449,-224.0,0.00034002,2]
[404846920,1770618640459,-158.41978577,0.00034038,2]
[404846921,1770618640469,-4125.012,0.00034038,2]
[404846922,1770618640478,-4882.1969,0.00034038,2]
[404846923,1770618640488,-150.0,0.00034111,2]
[404846924,1770618640497,-3154.45461973,0.00034113,2]
[404846925,1770618640506,-151.0,0.00034135,14]
[404846926,1770618640515,-1735.70643258,0.00034137,2]
[404846927,1770618640525,-300.0,0.00034137,10]
[404846928,1770618640534,-670.3895273,0.00034137,10]
[404846929,1770618640547,-912.33,0.00034138,14]
[404846930,1770618640557,-487.0,0.00034138,2]
[404846931,1770618640567,-487.0,0.00034138,2]
[404846932,1770618640576,-487.0,0.00034138,2]
[404846933,1770618640587,-487.0,0.00034138,2]
[404846934,1770618640596,-487.0,0.00034138,2]
[404846935,1770618640606,-487.0,0.00034138,2]
[404846936,1770618640615,-487.0,0.00034138,2]
[404846937,1770618640624,-487.0,0.00034138,2]
[404846938,1770618640633,-487.0,0.00034138,2]
[404846939,1770618640643,-487.0,0.00034138,2]
[404846940,1770618640653,-487.0,0.00034138,2]
[404846941,1770618640663,-487.0,0.00034138,2]
[404846942,1770618640672,-487.0,0.00034138,2]
[404846943,1770618640682,-487.0,0.00034138,2]
[404846944,1770618640691,-487.0,0.00034138,2]
[404846945,1770618640701,-487.0,0.00034138,2]
[404846946,1770618640711,-487.0,0.00034138,2]
[404846947,1770618640720,-487.0,0.00034138,2]
[404846948,1770618640730,-737.74,0.00034138,2]
[404846949,1770618640740,-311.0,0.00034193,2]
[404846950,1770618640753,-4251.81,0.00034199,2]
[404846951,1770618640763,-8408.13,0.000342,2]
[404846952,1770618640772,-596.46,0.000342,2]
[404846953,1770618640782,-187.0,0.00034275,2]
[404846954,1770618640792,-500.0,0.00034276,2]
[404846955,1770618640801,-1852.42,0.00034381,2]
[404846956,1770618640811,-912.33,0.00034412,14]
[404846957,1770618640821,-282.9,0.00034458,5]
[404846958,1770618640830,-502.0,0.00034548,2]
[404846959,1770618640840,-500.0,0.0003455,2]
[404846960,1770618640850,-166.66,0.0003457,2]
[404846961,1770618640859,-427.83,0.00034649,15]
[404846962,1770618640869,-2896.92,0.00034649,2]
[404846963,1770618640881,-1183.31,0.00034649,2]
[404846964,1770618640892,-912.33,0.00034686,14]
[404846965,1770618640901,-500.0,0.00034712,2]
[404846966,1770618640911,-500.0,0.00034751,2]
[404846967,1770618640920,-500.0,0.00034824,2]
[404846968,1770618640931,-500.0,0.000349,2]
[404846969,1770618640944,-500.0,0.000349,2]
[404846970,1770618640954,-500.0,0.000349,2]
[404846971,1770618640965,-500.0,0.000349,2]
[404846972,1770618640976,-355.09943675,0.000349,2]
[404846973,1770618640986,-150.0,0.00034904,2]
[404846974,1770618640995,-622.84179704,0.00034908,2]
[404846975,1770618641005,-1222.52,0.00034936,2]
[404846976,1770618641015,-912.33,0.0003496,14]
[404846977,1770618641027,-150.0,0.00034999,20]
[404846978,1770618641038,-500.0,0.00034999,10]
[404846979,1770618641047,-250.0,0.00035055,2]
[404846980,1770618641057,-217.0,0.00035055,2]
[404846981,1770618641067,-166.02163686,0.00035098,2]
[404846982,1770618641077,-280.0,0.00035137,2]
[404846983,1770618641087,-5146.50472497,0.000352,2]
[404846984,1770618641097,-183.04,0.00035211,2]
[404846985,1770618641106,-186.0,0.00035219,2]
[404846986,1770618641118,-912.33,0.00035234,14]